[Event "Late-Titled-Tuesday-Blitz-April-30-2024"]
[Site "Chess.com"]
[Date "2024.04.30"]
[Round "4"]
[White "maximnovik"]
[Black "KebabJangles"]
[Result "1-0"]
[WhiteElo "2505"]
[BlackElo "2308"]
[TimeControl "180+1"]
[EndTime "14:38:52 PDT"]
[Termination "maximnovik won by resignation"]

1. e4 {[%clk 0:03:00.1]} 1... c5 {[%clk 0:02:59.5]} 2. Nf3 {[%clk 0:03:00]} 2...
e6 {[%clk 0:02:55.2]} 3. c3 {[%clk 0:02:59.5]} 3... d5 {[%clk 0:02:52.7]} 4. e5
{[%clk 0:02:59.5]} 4... d4 {[%clk 0:02:52.5]} 5. d3 {[%clk 0:02:59.4]} 5... Nc6
{[%clk 0:02:51.2]} 6. g3 {[%clk 0:03:00]} 6... Nge7 {[%clk 0:02:49.7]} 7. Bg2
{[%clk 0:03:00.2]} 7... Ng6 {[%clk 0:02:50.3]} 8. Qe2 {[%clk 0:03:00.2]} 8...
Be7 {[%clk 0:02:48.7]} 9. O-O {[%clk 0:03:00.1]} 9... Qc7 {[%clk 0:02:44.5]} 10.
Re1 {[%clk 0:02:55.8]} 10... O-O {[%clk 0:02:41.1]} 11. h4 {[%clk 0:02:51.3]}
11... f6 {[%clk 0:02:16.8]} 12. exf6 {[%clk 0:02:34.1]} 12... Bxf6 {[%clk
0:02:17.7]} 13. h5 {[%clk 0:02:29.5]} 13... Nge7 {[%clk 0:02:10.7]} 14. h6
{[%clk 0:02:26.5]} 14... g6 {[%clk 0:02:09.5]} 15. c4 {[%clk 0:02:24.7]} 15...
e5 {[%clk 0:02:03.7]} 16. Nh2 {[%clk 0:02:24.1]} 16... Nf5 {[%clk 0:02:00.5]}
17. Nd2 {[%clk 0:02:22.4]} 17... Nd6 {[%clk 0:02:00.6]} 18. Ne4 {[%clk 0:02:21]}
18... Nxe4 {[%clk 0:02:00.6]} 19. Bxe4 {[%clk 0:02:21]} 19... Be6 {[%clk
0:01:56.2]} 20. Ng4 {[%clk 0:02:04.9]} 20... Bh8 {[%clk 0:01:53.6]} 21. Bg5
{[%clk 0:01:52.5]} 21... Rae8 {[%clk 0:01:50.3]} 22. f3 {[%clk 0:01:35.2]} 22...
Ne7 {[%clk 0:01:44.7]} 23. Bxe7 {[%clk 0:01:30.5]} 23... Rxe7 {[%clk 0:01:42.9]}
24. Qd2 {[%clk 0:01:30.4]} 24... Bxg4 {[%clk 0:01:40.5]} 25. fxg4 {[%clk
0:01:30.5]} 25... Rf6 {[%clk 0:01:24.8]} 26. g5 {[%clk 0:01:30.2]} 26... Rd6
{[%clk 0:01:23.1]} 27. Rf1 {[%clk 0:01:27.4]} 27... Qd7 {[%clk 0:01:21.3]} 28.
Rf3 {[%clk 0:01:19.4]} 28... Re8 {[%clk 0:00:46.5]} 29. Raf1 {[%clk 0:01:18.6]}
29... b6 {[%clk 0:00:44.7]} 30. Qf2 {[%clk 0:01:17.9]} 30... Qe7 {[%clk
0:00:41.4]} 31. Rf7 {[%clk 0:01:09.7]} 1-0

[Event "Late-Titled-Tuesday-Blitz-April-30-2024"]
[Site "Chess.com"]
[Date "2024.04.30"]
[Round "4"]
[White "nochewycandy"]
[Black "Anton_Demchenko"]
[Result "1-0"]
[WhiteElo "2816"]
[BlackElo "2913"]
[TimeControl "180+1"]
[EndTime "14:38:56 PDT"]
[Termination "nochewycandy won by checkmate"]

1. Nf3 {[%clk 0:03:00.9]} 1... Nf6 {[%clk 0:02:54.9]} 2. g3 {[%clk 0:02:54.2]}
2... g6 {[%clk 0:02:53.6]} 3. Bg2 {[%clk 0:02:54.5]} 3... Bg7 {[%clk 0:02:53.2]}
4. O-O {[%clk 0:02:54]} 4... O-O {[%clk 0:02:54.1]} 5. d4 {[%clk 0:02:53.7]}
5... d6 {[%clk 0:02:54.8]} 6. c4 {[%clk 0:02:54.3]} 6... Nbd7 {[%clk 0:02:54.5]}
7. Nc3 {[%clk 0:02:52.3]} 7... e5 {[%clk 0:02:55]} 8. e4 {[%clk 0:02:51.6]} 8...
exd4 {[%clk 0:02:55.6]} 9. Nxd4 {[%clk 0:02:51.7]} 9... Re8 {[%clk 0:02:56.3]}
10. Nc2 {[%clk 0:02:45.5]} 10... Nc5 {[%clk 0:02:44.2]} 11. f3 {[%clk 0:02:45]}
11... Nfd7 {[%clk 0:02:41.7]} 12. Ne3 {[%clk 0:02:41]} 12... a5 {[%clk
0:02:36.5]} 13. Qc2 {[%clk 0:02:31.2]} 13... a4 {[%clk 0:02:35.6]} 14. Bd2
{[%clk 0:02:24.8]} 14... c6 {[%clk 0:02:35]} 15. Kh1 {[%clk 0:02:23.4]} 15... h5
{[%clk 0:02:31.7]} 16. f4 {[%clk 0:02:15]} 16... h4 {[%clk 0:02:12.7]} 17. e5
{[%clk 0:02:12]} 17... hxg3 {[%clk 0:02:03]} 18. hxg3 {[%clk 0:02:11.1]} 18...
dxe5 {[%clk 0:01:11.4]} 19. f5 {[%clk 0:02:11.5]} 19... g5 {[%clk 0:01:05]} 20.
Ng4 {[%clk 0:02:06.4]} 20... f6 {[%clk 0:00:57.5]} 21. Rad1 {[%clk 0:02:04]}
21... Qe7 {[%clk 0:00:57.6]} 22. Be3 {[%clk 0:01:57.3]} 22... Qf7 {[%clk
0:00:51.6]} 23. Qe2 {[%clk 0:01:51.9]} 23... e4 {[%clk 0:00:41.7]} 24. Rd6
{[%clk 0:01:43.2]} 24... Qe7 {[%clk 0:00:20.6]} 25. Rfd1 {[%clk 0:01:36]} 25...
Bf8 {[%clk 0:00:21.3]} 26. Bxc5 {[%clk 0:01:31.3]} 26... Nxc5 {[%clk 0:00:08.5]}
27. Nxf6+ {[%clk 0:01:31.7]} 27... Kf7 {[%clk 0:00:08.2]} 28. Qh5+ {[%clk
0:01:28.6]} 28... Kg7 {[%clk 0:00:07]} 29. Qh7# {[%clk 0:01:28.9]} 1-0

[Event "Late-Titled-Tuesday-Blitz-April-30-2024"]
[Site "Chess.com"]
[Date "2024.04.30"]
[Round "4"]
[White "Rytenko_V"]
[Black "Davidalhesa2007"]
[Result "1-0"]
[WhiteElo "2495"]
[BlackElo "1912"]
[TimeControl "180+1"]
[EndTime "14:39:04 PDT"]
[Termination "Rytenko_V won on time"]

1. e4 {[%clk 0:03:00.9]} 1... c5 {[%clk 0:02:58.6]} 2. Nf3 {[%clk 0:03:00.6]}
2... e6 {[%clk 0:02:58.3]} 3. d4 {[%clk 0:03:00.4]} 3... cxd4 {[%clk 0:02:57.2]}
4. Nxd4 {[%clk 0:03:01.3]} 4... a6 {[%clk 0:02:53.6]} 5. Nc3 {[%clk 0:02:59.9]}
5... Qc7 {[%clk 0:02:51.7]} 6. Bd3 {[%clk 0:02:59.8]} 6... Nc6 {[%clk
0:02:51.3]} 7. Nxc6 {[%clk 0:02:59.7]} 7... dxc6 {[%clk 0:02:50.9]} 8. O-O
{[%clk 0:02:57.4]} 8... b5 {[%clk 0:02:50.4]} 9. a3 {[%clk 0:02:56.5]} 9... c5
{[%clk 0:02:50.3]} 10. Re1 {[%clk 0:02:55.4]} 10... Bb7 {[%clk 0:02:20.7]} 11.
Nd5 {[%clk 0:02:54.3]} 11... exd5 {[%clk 0:02:15.6]} 12. exd5+ {[%clk
0:02:55.2]} 12... Be7 {[%clk 0:02:11.5]} 13. d6 {[%clk 0:02:54.3]} 13... Qxd6
{[%clk 0:02:07.3]} 14. Bxb5+ {[%clk 0:02:53.8]} 14... Kf8 {[%clk 0:02:00]} 15.
Bd3 {[%clk 0:02:49.7]} 15... Nf6 {[%clk 0:01:27]} 16. Be3 {[%clk 0:02:36]} 16...
h6 {[%clk 0:01:08.2]} 17. Qe2 {[%clk 0:02:29.1]} 17... Re8 {[%clk 0:00:58.5]}
18. Rad1 {[%clk 0:02:27.5]} 18... Qc7 {[%clk 0:00:33.8]} 19. f3 {[%clk
0:02:24.3]} 19... Bc6 {[%clk 0:00:27.9]} 20. Bxa6 {[%clk 0:02:19.3]} 20... Bd6
{[%clk 0:00:19.4]} 21. h3 {[%clk 0:02:02.4]} 21... Nd5 {[%clk 0:00:13.2]} 22.
Rd3 {[%clk 0:01:46.3]} 22... Nxe3 {[%clk 0:00:12.3]} 23. Rxe3 {[%clk 0:01:45.4]}
23... Rxe3 {[%clk 0:00:06.3]} 24. Qxe3 {[%clk 0:01:46.3]} 24... g6 {[%clk
0:00:05.2]} 25. Qc3 {[%clk 0:01:40.2]} 25... Rg8 {[%clk 0:00:02.8]} 26. Bc4
{[%clk 0:01:38.3]} 26... Qe7 {[%clk 0:00:01.6]} 27. Rxe7 {[%clk 0:01:37.5]}
27... Bxe7 {[%clk 0:00:02.4]} 28. Qe5 {[%clk 0:01:35.6]} 28... f6 {[%clk
0:00:01.8]} 29. Qc7 {[%clk 0:01:35.6]} 29... Be8 {[%clk 0:00:00.7]} 30. a4
{[%clk 0:01:33.3]} 1-0

[Event "Late-Titled-Tuesday-Blitz-April-30-2024"]
[Site "Chess.com"]
[Date "2024.04.30"]
[Round "4"]
[White "PenguinPacks"]
[Black "profedechess93"]
[Result "1-0"]
[WhiteElo "2460"]
[BlackElo "2658"]
[TimeControl "180+1"]
[EndTime "14:39:07 PDT"]
[Termination "PenguinPacks won by resignation"]

1. e4 {[%clk 0:03:00.9]} 1... e6 {[%clk 0:02:59.8]} 2. d4 {[%clk 0:03:01]} 2...
d5 {[%clk 0:03:00.2]} 3. e5 {[%clk 0:03:01.7]} 3... c5 {[%clk 0:03:00.3]} 4. c3
{[%clk 0:03:02]} 4... Nc6 {[%clk 0:03:00.8]} 5. Nf3 {[%clk 0:03:02]} 5... Qb6
{[%clk 0:03:01.3]} 6. Bd3 {[%clk 0:03:02.2]} 6... cxd4 {[%clk 0:03:01.2]} 7. O-O
{[%clk 0:03:02.6]} 7... Bd7 {[%clk 0:03:01.3]} 8. Re1 {[%clk 0:03:02.9]} 8...
Rc8 {[%clk 0:03:01.4]} 9. c4 {[%clk 0:03:02.1]} 9... Nge7 {[%clk 0:02:55.8]} 10.
h4 {[%clk 0:02:55.4]} 10... Nb4 {[%clk 0:02:45.4]} 11. cxd5 {[%clk 0:02:50.6]}
11... Nxd3 {[%clk 0:02:17.4]} 12. Qxd3 {[%clk 0:02:50.3]} 12... Nxd5 {[%clk
0:02:14.5]} 13. a3 {[%clk 0:02:24.8]} 13... Bb5 {[%clk 0:01:58.1]} 14. Qe4
{[%clk 0:02:10.5]} 14... d3 {[%clk 0:01:45.6]} 15. Nc3 {[%clk 0:01:55.5]} 15...
Nxc3 {[%clk 0:01:11]} 16. bxc3 {[%clk 0:01:56.4]} 16... Rxc3 {[%clk 0:01:11.5]}
17. Be3 {[%clk 0:01:48.2]} 17... Qc6 {[%clk 0:01:07.9]} 18. Qg4 {[%clk
0:01:40.5]} 18... Qd5 {[%clk 0:01:01.1]} 19. Red1 {[%clk 0:01:31.8]} 19... h5
{[%clk 0:00:28.6]} 20. Qg5 {[%clk 0:01:28.9]} 20... Bc6 {[%clk 0:00:23.2]} 21.
Bxa7 {[%clk 0:01:21.2]} 21... Rc4 {[%clk 0:00:20.3]} 22. Bb6 {[%clk 0:01:18.4]}
22... f6 {[%clk 0:00:13.3]} 23. Qg6+ {[%clk 0:01:16]} 23... Ke7 {[%clk
0:00:09.3]} 24. Rxd3 {[%clk 0:01:12.2]} 1-0

[Event "Late-Titled-Tuesday-Blitz-April-30-2024"]
[Site "Chess.com"]
[Date "2024.04.30"]
[Round "4"]
[White "IsaqueGoncalvesSanto"]
[Black "Bykov_Egor"]
[Result "0-1"]
[WhiteElo "1862"]
[BlackElo "2602"]
[TimeControl "180+1"]
[EndTime "14:39:16 PDT"]
[Termination "Bykov_Egor won by resignation"]

1. d4 {[%clk 0:02:59.9]} 1... h5 {[%clk 0:03:00.1]} 2. e4 {[%clk 0:02:59]} 2...
h4 {[%clk 0:03:00.5]} 3. Nf3 {[%clk 0:02:53]} 3... d6 {[%clk 0:02:56.2]} 4. h3
{[%clk 0:02:51.6]} 4... Nc6 {[%clk 0:02:52.6]} 5. Bc4 {[%clk 0:02:44.7]} 5... g6
{[%clk 0:02:30]} 6. Bg5 {[%clk 0:02:34.9]} 6... Bg7 {[%clk 0:02:23.1]} 7. c3
{[%clk 0:02:31.8]} 7... Nf6 {[%clk 0:02:17.6]} 8. Nbd2 {[%clk 0:02:27.2]} 8...
Nxe4 {[%clk 0:02:10.1]} 9. Bxf7+ {[%clk 0:02:22.8]} 9... Kxf7 {[%clk 0:02:09.8]}
10. Nxe4 {[%clk 0:02:22.7]} 10... Bf5 {[%clk 0:02:04.3]} 11. Qe2 {[%clk
0:02:15]} 11... Bf6 {[%clk 0:01:43.6]} 12. Bxf6 {[%clk 0:02:08.5]} 12... exf6
{[%clk 0:01:44.5]} 13. g4 {[%clk 0:01:57.6]} 13... Bxe4 {[%clk 0:01:41.7]} 14.
Qxe4 {[%clk 0:01:54.7]} 14... Re8 {[%clk 0:01:41]} 15. Ne5+ {[%clk 0:01:54.4]}
15... dxe5 {[%clk 0:01:39]} 16. O-O-O {[%clk 0:01:44.6]} 16... exd4 {[%clk
0:01:36.8]} 17. Qf4 {[%clk 0:01:38.3]} 17... Qd6 {[%clk 0:01:34.3]} 18. Qh6
{[%clk 0:01:36.4]} 18... Rh8 {[%clk 0:01:33.6]} 19. Qd2 {[%clk 0:01:28.4]} 19...
Kg7 {[%clk 0:01:33.5]} 20. Rhe1 {[%clk 0:01:18.9]} 20... Rhe8 {[%clk 0:01:31.7]}
21. g5 {[%clk 0:01:12.9]} 21... f5 {[%clk 0:01:26.5]} 22. cxd4 {[%clk 0:00:38]}
22... Qd5 {[%clk 0:01:26.5]} 23. Kb1 {[%clk 0:00:35.9]} 23... Rad8 {[%clk
0:01:22.3]} 24. Qc3 {[%clk 0:00:32]} 24... Rxe1 {[%clk 0:01:19.9]} 25. Rxe1
{[%clk 0:00:29.7]} 25... Qxd4 {[%clk 0:01:20.1]} 26. Qxd4+ {[%clk 0:00:20.4]}
26... Rxd4 {[%clk 0:01:21]} 27. Re7+ {[%clk 0:00:20.7]} 27... Nxe7 {[%clk
0:01:20.5]} 0-1

[Event "Late-Titled-Tuesday-Blitz-April-30-2024"]
[Site "Chess.com"]
[Date "2024.04.30"]
[Round "4"]
[White "carloseduar100"]
[Black "UK_23"]
[Result "0-1"]
[WhiteElo "2218"]
[BlackElo "2472"]
[TimeControl "180+1"]
[EndTime "14:39:18 PDT"]
[Termination "UK_23 won by resignation"]

1. e4 {[%clk 0:02:56.8]} 1... c5 {[%clk 0:02:59.6]} 2. Nf3 {[%clk 0:02:56.7]}
2... e6 {[%clk 0:03:00.2]} 3. Nc3 {[%clk 0:02:57]} 3... Nc6 {[%clk 0:03:00.1]}
4. d3 {[%clk 0:02:57.3]} 4... Nf6 {[%clk 0:02:55.6]} 5. g3 {[%clk 0:02:58.2]}
5... d5 {[%clk 0:02:53.8]} 6. Qe2 {[%clk 0:02:56.1]} 6... d4 {[%clk 0:02:53]} 7.
Nd1 {[%clk 0:02:53.9]} 7... b6 {[%clk 0:02:51.6]} 8. Bg2 {[%clk 0:02:54.1]} 8...
Bb7 {[%clk 0:02:51.2]} 9. O-O {[%clk 0:02:54.2]} 9... Be7 {[%clk 0:02:50.1]} 10.
c3 {[%clk 0:02:53.1]} 10... Nd7 {[%clk 0:02:46.1]} 11. a3 {[%clk 0:02:53.2]}
11... O-O {[%clk 0:02:43.6]} 12. cxd4 {[%clk 0:02:53.5]} 12... cxd4 {[%clk
0:02:41.8]} 13. b4 {[%clk 0:02:53.4]} 13... e5 {[%clk 0:02:40.6]} 14. Nb2 {[%clk
0:02:52.5]} 14... b5 {[%clk 0:02:39]} 15. h4 {[%clk 0:02:50.2]} 15... h6 {[%clk
0:02:36.5]} 16. Nh2 {[%clk 0:02:44.3]} 16... a5 {[%clk 0:02:34]} 17. bxa5 {[%clk
0:02:43.8]} 17... Rxa5 {[%clk 0:02:32.8]} 18. f4 {[%clk 0:02:43.7]} 18... Bxa3
{[%clk 0:02:30.2]} 19. fxe5 {[%clk 0:02:38.1]} 19... Ndxe5 {[%clk 0:02:27.2]}
20. Ng4 {[%clk 0:02:20.9]} 20... Nxg4 {[%clk 0:02:26.7]} 21. Qxg4 {[%clk
0:02:20.9]} 21... Ne5 {[%clk 0:02:27.4]} 22. Qe2 {[%clk 0:02:11.4]} 22... Qa8
{[%clk 0:02:13.6]} 23. Kh2 {[%clk 0:01:53.4]} 23... Bc8 {[%clk 0:02:08.8]} 24.
Bh3 {[%clk 0:01:44.2]} 24... Bxh3 {[%clk 0:02:06.8]} 25. Kxh3 {[%clk 0:01:45.1]}
25... Qc8+ {[%clk 0:02:07.3]} 26. Kg2 {[%clk 0:01:44.6]} 26... Ra8 {[%clk
0:01:25.8]} 27. Rf5 {[%clk 0:01:40.5]} 27... f6 {[%clk 0:01:23.1]} 28. Rxa3
{[%clk 0:01:03.6]} 28... Rxa3 {[%clk 0:01:21.8]} 29. Nc4 {[%clk 0:01:03.9]}
29... bxc4 {[%clk 0:01:12.5]} 30. Bxa3 {[%clk 0:01:02]} 30... cxd3 {[%clk
0:01:12.7]} 31. Qa2+ {[%clk 0:01:02.6]} 31... Qc4 {[%clk 0:01:00.2]} 32. Qxc4+
{[%clk 0:00:59.4]} 32... Nxc4 {[%clk 0:01:01.1]} 33. Bxf8 {[%clk 0:00:58.1]}
33... d2 {[%clk 0:00:59.9]} 34. Rf1 {[%clk 0:00:50.2]} 34... Ne3+ {[%clk
0:00:53.3]} 35. Kf2 {[%clk 0:00:50.1]} 35... Nxf1 {[%clk 0:00:53.7]} 36. Ke2
{[%clk 0:00:50.1]} 36... Kxf8 {[%clk 0:00:54]} 0-1

[Event "Late-Titled-Tuesday-Blitz-April-30-2024"]
[Site "Chess.com"]
[Date "2024.04.30"]
[Round "4"]
[White "protectiago"]
[Black "Sacbutt"]
[Result "1-0"]
[WhiteElo "2051"]
[BlackElo "2266"]
[TimeControl "180+1"]
[EndTime "14:39:21 PDT"]
[Termination "protectiago won by checkmate"]

1. d4 {[%clk 0:02:42.2]} 1... e5 {[%clk 0:02:59.5]} 2. dxe5 {[%clk 0:02:35]}
2... Nc6 {[%clk 0:02:59.3]} 3. Nf3 {[%clk 0:02:33.6]} 3... Qe7 {[%clk
0:02:59.6]} 4. g3 {[%clk 0:02:33.6]} 4... Nxe5 {[%clk 0:03:00]} 5. Bg2 {[%clk
0:02:33.4]} 5... c6 {[%clk 0:03:00.4]} 6. O-O {[%clk 0:02:32.4]} 6... d5 {[%clk
0:03:00.9]} 7. Nbd2 {[%clk 0:02:28.2]} 7... f5 {[%clk 0:02:59.9]} 8. Nxe5 {[%clk
0:02:27.9]} 8... Qxe5 {[%clk 0:03:00.8]} 9. Nf3 {[%clk 0:02:28.4]} 9... Qe6
{[%clk 0:03:01.5]} 10. c4 {[%clk 0:02:24.7]} 10... dxc4 {[%clk 0:03:00.4]} 11.
Qc2 {[%clk 0:02:24.9]} 11... Nf6 {[%clk 0:02:48.7]} 12. Ng5 {[%clk 0:02:05.2]}
12... Qg8 {[%clk 0:02:48.4]} 13. Rd1 {[%clk 0:01:27.2]} 13... h6 {[%clk
0:02:40.3]} 14. Nf3 {[%clk 0:01:26.1]} 14... Bd7 {[%clk 0:02:26.6]} 15. Bf4
{[%clk 0:01:23.5]} 15... Qe6 {[%clk 0:02:21.5]} 16. Nd4 {[%clk 0:01:22.3]} 16...
Qf7 {[%clk 0:02:16.2]} 17. Nxf5 {[%clk 0:01:16.6]} 17... Bc5 {[%clk 0:01:59.5]}
18. Nd6+ {[%clk 0:01:06.4]} 18... Bxd6 {[%clk 0:01:59.2]} 19. Bxd6 {[%clk
0:01:06.2]} 19... O-O-O {[%clk 0:01:56.9]} 20. Qa4 {[%clk 0:01:05.1]} 20... a6
{[%clk 0:01:53.1]} 21. Qa5 {[%clk 0:01:03.6]} 21... Be6 {[%clk 0:01:40.4]} 22.
Qb6 {[%clk 0:00:34.4]} 22... Bd5 {[%clk 0:01:32.1]} 23. Bf4 {[%clk 0:00:28.9]}
23... g5 {[%clk 0:01:16.4]} 24. e4 {[%clk 0:00:25.9]} 24... Nxe4 {[%clk
0:01:02.3]} 25. Rxd5 {[%clk 0:00:24.5]} 25... cxd5 {[%clk 0:00:50]} 26. Bh3+
{[%clk 0:00:22.1]} 26... Rd7 {[%clk 0:00:45]} 27. Qc7# {[%clk 0:00:21.4]} 1-0

[Event "Late-Titled-Tuesday-Blitz-April-30-2024"]
[Site "Chess.com"]
[Date "2024.04.30"]
[Round "4"]
[White "only_strong_moves"]
[Black "CDOEspiao"]
[Result "1-0"]
[WhiteElo "2728"]
[BlackElo "2540"]
[TimeControl "180+1"]
[EndTime "14:39:22 PDT"]
[Termination "only_strong_moves won by resignation"]

1. Nc3 {[%clk 0:03:00.9]} 1... c5 {[%clk 0:02:58]} 2. Nf3 {[%clk 0:03:00.8]}
2... e6 {[%clk 0:02:55.6]} 3. d4 {[%clk 0:02:59.2]} 3... cxd4 {[%clk 0:02:55.6]}
4. Nxd4 {[%clk 0:03:00.1]} 4... b6 {[%clk 0:02:56]} 5. Bf4 {[%clk 0:02:54.9]}
5... d6 {[%clk 0:02:39]} 6. Ndb5 {[%clk 0:02:54.5]} 6... e5 {[%clk 0:02:34.1]}
7. Qd5 {[%clk 0:02:53.7]} 7... exf4 {[%clk 0:01:52.5]} 8. Qxa8 {[%clk 0:02:52]}
8... Be6 {[%clk 0:01:49.4]} 9. Qb7 {[%clk 0:02:44.4]} 9... Be7 {[%clk
0:01:44.3]} 10. Ne4 {[%clk 0:02:22.6]} 10... Nf6 {[%clk 0:01:37.9]} 11. Nc7+
{[%clk 0:02:22.2]} 11... Kf8 {[%clk 0:01:37.3]} 12. Nxe6+ {[%clk 0:02:22.8]}
12... fxe6 {[%clk 0:01:37.7]} 13. Ng5 {[%clk 0:02:23.4]} 13... Kg8 {[%clk
0:01:18]} 14. Nxe6 {[%clk 0:02:22.4]} 14... Qe8 {[%clk 0:01:16.7]} 15. Nxf4
{[%clk 0:02:18.6]} 15... Nbd7 {[%clk 0:01:12.5]} 16. e3 {[%clk 0:02:18.5]} 16...
h5 {[%clk 0:00:58.2]} 17. Bc4+ {[%clk 0:02:17.7]} 17... Kh7 {[%clk 0:00:58.4]}
18. Bb5 {[%clk 0:02:05.7]} 18... Qc8 {[%clk 0:00:54.8]} 19. Qxc8 {[%clk
0:02:05.2]} 19... Rxc8 {[%clk 0:00:55.7]} 20. Bxd7 {[%clk 0:02:04.8]} 20... Nxd7
{[%clk 0:00:55.8]} 21. O-O-O {[%clk 0:02:04.7]} 21... Ne5 {[%clk 0:00:51.3]} 22.
Nxh5 {[%clk 0:01:55.6]} 22... g5 {[%clk 0:00:45]} 23. Ng3 {[%clk 0:01:55.1]}
23... Kg6 {[%clk 0:00:44.5]} 24. Ne4 {[%clk 0:01:54.8]} 24... Rc6 {[%clk
0:00:43.8]} 25. c3 {[%clk 0:01:49]} 25... a5 {[%clk 0:00:44.1]} 26. Rd2 {[%clk
0:01:44.2]} 26... b5 {[%clk 0:00:44.5]} 27. Rhd1 {[%clk 0:01:43.3]} 27... Nc4
{[%clk 0:00:42.4]} 28. Rd5 {[%clk 0:01:43.7]} 28... b4 {[%clk 0:00:41.9]} 29. b3
{[%clk 0:01:36.6]} 29... Na3 {[%clk 0:00:35.7]} 30. c4 {[%clk 0:01:35.3]} 30...
a4 {[%clk 0:00:36]} 31. Nxd6 {[%clk 0:01:34.6]} 31... axb3 {[%clk 0:00:34.5]}
32. axb3 {[%clk 0:01:35.5]} 32... Ra6 {[%clk 0:00:30.1]} 33. Nc8 {[%clk
0:01:35.3]} 33... Bf8 {[%clk 0:00:27.2]} 34. Rd6+ {[%clk 0:01:31]} 34... Bxd6
{[%clk 0:00:26.8]} 35. Rxd6+ {[%clk 0:01:31.9]} 35... Rxd6 {[%clk 0:00:27.1]}
36. Nxd6 {[%clk 0:01:32.8]} 36... Kf6 {[%clk 0:00:27.3]} 37. Nb5 {[%clk
0:01:28.3]} 37... g4 {[%clk 0:00:20.8]} 38. Nxa3 {[%clk 0:01:26.6]} 38... bxa3
{[%clk 0:00:21.7]} 39. Kb1 {[%clk 0:01:27.5]} 39... g3 {[%clk 0:00:22]} 40. hxg3
{[%clk 0:01:27.4]} 1-0

[Event "Late-Titled-Tuesday-Blitz-April-30-2024"]
[Site "Chess.com"]
[Date "2024.04.30"]
[Round "4"]
[White "kleinebeer98"]
[Black "mishanick"]
[Result "0-1"]
[WhiteElo "2920"]
[BlackElo "3109"]
[TimeControl "180+1"]
[EndTime "14:39:25 PDT"]
[Termination "mishanick won by resignation"]

1. e4 {[%clk 0:03:00.9]} 1... c5 {[%clk 0:03:00.7]} 2. Nf3 {[%clk 0:03:00.8]}
2... e6 {[%clk 0:03:01.4]} 3. d4 {[%clk 0:03:00.8]} 3... cxd4 {[%clk 0:03:02]}
4. Bg5 {[%clk 0:03:01.2]} 4... f6 {[%clk 0:03:01.7]} 5. Bc1 {[%clk 0:03:01.4]}
5... Bb4+ {[%clk 0:02:53.3]} 6. c3 {[%clk 0:03:01.5]} 6... dxc3 {[%clk
0:02:53.8]} 7. bxc3 {[%clk 0:02:59.5]} 7... Bc5 {[%clk 0:02:52]} 8. Nd4 {[%clk
0:02:58]} 8... Qb6 {[%clk 0:02:25.1]} 9. Na3 {[%clk 0:02:47.7]} 9... a6 {[%clk
0:01:58.2]} 10. Rb1 {[%clk 0:02:45]} 10... Qc7 {[%clk 0:01:56.6]} 11. Qh5+
{[%clk 0:02:34.6]} 11... g6 {[%clk 0:01:56.2]} 12. Qh4 {[%clk 0:02:22.2]} 12...
Bxa3 {[%clk 0:01:51.2]} 13. Bd2 {[%clk 0:02:20.2]} 13... Nc6 {[%clk 0:01:50.3]}
14. Be2 {[%clk 0:02:19.6]} 14... Bc5 {[%clk 0:01:45.4]} 15. O-O {[%clk
0:02:17.8]} 15... b5 {[%clk 0:01:32.5]} 16. Be3 {[%clk 0:02:16.2]} 16... Be7
{[%clk 0:01:29.4]} 17. Rfc1 {[%clk 0:02:10.3]} 17... Ne5 {[%clk 0:01:26]} 18. c4
{[%clk 0:02:09.4]} 18... Nxc4 {[%clk 0:01:25.2]} 19. Bxc4 {[%clk 0:02:03]} 19...
bxc4 {[%clk 0:01:26.1]} 20. Nf3 {[%clk 0:01:48.4]} 20... e5 {[%clk 0:01:24.1]}
21. Nd2 {[%clk 0:01:42.4]} 21... c3 {[%clk 0:01:21.9]} 22. Nf3 {[%clk
0:01:39.3]} 22... Rb8 {[%clk 0:01:19.6]} 23. Rxb8 {[%clk 0:01:38.4]} 23... Qxb8
{[%clk 0:01:20.5]} 24. Rxc3 {[%clk 0:01:39.2]} 24... Bb7 {[%clk 0:01:19.4]} 25.
h3 {[%clk 0:01:31.4]} 25... Bc6 {[%clk 0:01:19.3]} 26. Nd2 {[%clk 0:01:27.3]}
26... Qb2 {[%clk 0:01:12.8]} 27. Rb3 {[%clk 0:01:25.7]} 27... Qxa2 {[%clk
0:01:07.1]} 28. Rb8+ {[%clk 0:01:19.6]} 28... Kf7 {[%clk 0:01:07.6]} 29. f4
{[%clk 0:01:11.8]} 29... Bd6 {[%clk 0:01:00.2]} 30. Rc8 {[%clk 0:01:00.5]} 30...
exf4 {[%clk 0:00:50.4]} 31. Bxf4 {[%clk 0:01:01.4]} 31... Qe6 {[%clk 0:00:41.9]}
32. Bxd6 {[%clk 0:00:54.4]} 32... Qxd6 {[%clk 0:00:42.8]} 33. Nf3 {[%clk
0:00:55.3]} 33... Kg7 {[%clk 0:00:40.9]} 34. e5 {[%clk 0:00:51.6]} 34... fxe5
{[%clk 0:00:40.9]} 35. Ng5 {[%clk 0:00:47.6]} 35... Qd4+ {[%clk 0:00:39.4]} 36.
Qxd4 {[%clk 0:00:46.6]} 36... exd4 {[%clk 0:00:40.3]} 0-1

[Event "Late-Titled-Tuesday-Blitz-April-30-2024"]
[Site "Chess.com"]
[Date "2024.04.30"]
[Round "4"]
[White "DenisQ"]
[Black "Mikhal867"]
[Result "1-0"]
[WhiteElo "2723"]
[BlackElo "2540"]
[TimeControl "180+1"]
[EndTime "14:39:25 PDT"]
[Termination "DenisQ won on time"]

1. Nf3 {[%clk 0:03:00.9]} 1... c5 {[%clk 0:02:56.6]} 2. c4 {[%clk 0:03:00]} 2...
Nf6 {[%clk 0:02:56.4]} 3. Nc3 {[%clk 0:03:00.6]} 3... d5 {[%clk 0:02:56.6]} 4.
cxd5 {[%clk 0:02:54.9]} 4... Nxd5 {[%clk 0:02:56.5]} 5. e4 {[%clk 0:02:50.8]}
5... Nb4 {[%clk 0:02:53.6]} 6. Bb5+ {[%clk 0:02:49.6]} 6... Bd7 {[%clk
0:02:39.8]} 7. Bc4 {[%clk 0:02:47.4]} 7... e6 {[%clk 0:02:16.8]} 8. O-O {[%clk
0:02:43.4]} 8... Be7 {[%clk 0:02:11.3]} 9. d4 {[%clk 0:02:39.2]} 9... cxd4
{[%clk 0:02:06.2]} 10. Nxd4 {[%clk 0:02:40.1]} 10... N8c6 {[%clk 0:02:02.4]} 11.
Ndb5 {[%clk 0:02:32.3]} 11... O-O {[%clk 0:01:43.8]} 12. a3 {[%clk 0:02:31.3]}
12... Na6 {[%clk 0:01:43.6]} 13. Be3 {[%clk 0:02:29.7]} 13... Ne5 {[%clk
0:01:37.3]} 14. Be2 {[%clk 0:02:26.8]} 14... Bc6 {[%clk 0:01:32]} 15. Nxa7
{[%clk 0:02:18.8]} 15... Qc7 {[%clk 0:01:00.1]} 16. Nxc6 {[%clk 0:02:15.3]}
16... Nxc6 {[%clk 0:00:58.3]} 17. Rc1 {[%clk 0:02:07.2]} 17... Bf6 {[%clk
0:00:54.2]} 18. Nb5 {[%clk 0:01:59.8]} 18... Qe5 {[%clk 0:00:48.8]} 19. b4
{[%clk 0:01:55.5]} 19... Qxe4 {[%clk 0:00:39.6]} 20. Nd6 {[%clk 0:01:54.4]}
20... Qh4 {[%clk 0:00:30.3]} 21. b5 {[%clk 0:01:51.6]} 21... Rad8 {[%clk
0:00:27.4]} 22. bxc6 {[%clk 0:01:46.8]} 22... Be5 {[%clk 0:00:27.4]} 23. g3
{[%clk 0:01:46.7]} 23... Qe7 {[%clk 0:00:25.2]} 24. Bxa6 {[%clk 0:01:26.4]}
24... bxa6 {[%clk 0:00:20.2]} 25. c7 {[%clk 0:01:21.3]} 25... Rxd6 {[%clk
0:00:20]} 26. c8=Q {[%clk 0:01:20.8]} 26... Rxd1 {[%clk 0:00:19.6]} 27. Rfxd1
{[%clk 0:01:19.5]} 27... Bb2 {[%clk 0:00:11.7]} 28. Rc7 {[%clk 0:01:11.4]} 28...
Qxa3 {[%clk 0:00:08.9]} 29. Bc5 {[%clk 0:01:08.7]} 1-0